[Event "Titled Tuesday Blitz August 08 Early 2023"]
[White "Mirzanurov, Bulat"]
[Black "Novikov, Evgenij"]
[WhiteFideId "4184521"]
[BlackFideId "4125380"]
[WhiteElo "2199"]
[BlackElo "2431"]
[Result "1/2-1/2"]
[Round "11"]
[TimeControl "180+1"]
[Date "2023.08.08"]
[WhiteClock "0:00:06"]
[BlackClock "0:00:03"]
[Board "117"]

1. e4 {[%clk 0:03:00]}  c5 {[%clk 0:02:59]} 2. Nf3 {[%clk 0:03:00]}  Nc6 {[%clk 0:02:58]} 3. Bb5 {[%clk 0:02:57]}  g6 {[%clk 0:02:57]} 4. Bxc6 {[%clk 0:02:53]}  dxc6 {[%clk 0:02:58]} 5. O-O {[%clk 0:02:52]}  Bg7 {[%clk 0:02:58]} 6. Re1 {[%clk 0:02:52]}  e5 {[%clk 0:02:55]} 7. a4 {[%clk 0:02:49]}  a5 {[%clk 0:02:54]} 8. d3 {[%clk 0:02:46]}  b6 {[%clk 0:02:53]} 9. Na3 {[%clk 0:02:41]}  Bg4 {[%clk 0:02:28]} 10. h3 {[%clk 0:02:39]}  Bxf3 {[%clk 0:02:27]} 11. Qxf3 {[%clk 0:02:40]}  Nf6 {[%clk 0:02:24]} 12. Bg5 {[%clk 0:02:39]}  h6 {[%clk 0:02:23]} 13. Bxf6 {[%clk 0:02:25]}  Qxf6 {[%clk 0:02:22]} 14. Qe3 {[%clk 0:02:20]}  O-O {[%clk 0:02:18]} 15. Nc4 {[%clk 0:02:20]}  Qd8 {[%clk 0:02:08]} 16. Ra3 {[%clk 0:02:07]}  Qc7 {[%clk 0:01:51]} 17. Rb3 {[%clk 0:02:05]}  Rab8 {[%clk 0:01:50]} 18. Qd2 {[%clk 0:01:50]}  Rfd8 {[%clk 0:01:47]} 19. g3 {[%clk 0:01:36]}  h5 {[%clk 0:01:28]} 20. h4 {[%clk 0:01:35]}  Kh7 {[%clk 0:01:27]} 21. Kg2 {[%clk 0:01:27]}  Rd7 {[%clk 0:01:20]} 22. Qc3 {[%clk 0:01:14]}  Re7 {[%clk 0:01:06]} 23. Re2 {[%clk 0:01:04]}  Bh6 {[%clk 0:00:56]} 24. Re1 {[%clk 0:00:47]}  b5 {[%clk 0:00:55]} 25. Nxa5 {[%clk 0:00:40]}  Ra8 {[%clk 0:00:19]} 26. Nxc6 {[%clk 0:00:34]}  Qxc6 {[%clk 0:00:19]} 27. axb5 {[%clk 0:00:35]}  Qb6 {[%clk 0:00:18]} 28. Qc4 {[%clk 0:00:34]}  Rd7 {[%clk 0:00:17]} 29. Rd1 {[%clk 0:00:31]}  Bf8 {[%clk 0:00:16]} 30. Ra3 {[%clk 0:00:28]}  Rb8 {[%clk 0:00:14]} 31. Rb3 {[%clk 0:00:21]}  Kg7 {[%clk 0:00:14]} 32. Ra1 {[%clk 0:00:20]}  Rd4 {[%clk 0:00:12]} 33. Qc3 {[%clk 0:00:20]}  Qb7 {[%clk 0:00:11]} 34. Ra6 {[%clk 0:00:19]}  c4 {[%clk 0:00:10]} 35. dxc4 {[%clk 0:00:13]}  Qxe4+ {[%clk 0:00:10]} 36. Qf3 {[%clk 0:00:14]}  Qxc2 {[%clk 0:00:07]} 37. Qf6+ {[%clk 0:00:11]}  Kg8 {[%clk 0:00:07]} 38. Rf3 {[%clk 0:00:11]}  Qxc4 {[%clk 0:00:04]} 39. Ra7 {[%clk 0:00:11]}  e4 {[%clk 0:00:03]} 40. Rf4 {[%clk 0:00:09]}  Qd5 {[%clk 0:00:02]} 41. Rxf7 {[%clk 0:00:08]}  e3+ {[%clk 0:00:02]} 42. Rf3 {[%clk 0:00:09]}  exf2 {[%clk 0:00:02]} 43. Rxf8+ {[%clk 0:00:09]}  Rxf8 {[%clk 0:00:02]} 44. Qxf8+ {[%clk 0:00:07]}  Kh7 {[%clk 0:00:02]} 45. Qe7+ {[%clk 0:00:07]}  Kh6 {[%clk 0:00:02]} 46. Qg5+ {[%clk 0:00:05]}  Qxg5 {[%clk 0:00:01]} 47. hxg5+ {[%clk 0:00:06]}  Kxg5 {[%clk 0:00:02]} 48. Kxf2 {[%clk 0:00:06]}  Rb4 {[%clk 0:00:02]} 49. Re3 {[%clk 0:00:03]}  Rxb2+ {[%clk 0:00:02]} 50. Kf3 {[%clk 0:00:04]}  Rxb5 {[%clk 0:00:03]} 51. Re6 {[%clk 0:00:05]}  Rf5+ {[%clk 0:00:03]} 52. Kg2 {[%clk 0:00:05]}  Kh6 {[%clk 0:00:04]} 53. Kh3 {[%clk 0:00:04]}  Rg5 {[%clk 0:00:04]} 54. Kh4 {[%clk 0:00:04]}  Rg4+ {[%clk 0:00:04]} 55. Kh3 {[%clk 0:00:05]}  Rg5 {[%clk 0:00:05]} 56. Kh4 {[%clk 0:00:05]}  Rb5 {[%clk 0:00:05]} 57. Kh3 {[%clk 0:00:03]}  Rb2 {[%clk 0:00:05]} 58. Re4 {[%clk 0:00:02]}  Kg5 {[%clk 0:00:05]} 59. Re5+ {[%clk 0:00:01]}  Kf6 {[%clk 0:00:05]} 60. Re4 {[%clk 0:00:02]}  Ra2 {[%clk 0:00:05]} 61. Rf4+ {[%clk 0:00:02]}  Ke5 {[%clk 0:00:04]} 62. Rb4 {[%clk 0:00:03]}  g5 {[%clk 0:00:05]} 63. Rb5+ {[%clk 0:00:03]}  Kf6 {[%clk 0:00:05]} 64. Rb6+ {[%clk 0:00:03]}  Kf7 {[%clk 0:00:05]} 65. Rb5 {[%clk 0:00:04]}  g4+ {[%clk 0:00:04]} 66. Kh4 {[%clk 0:00:04]}  Rh2+ {[%clk 0:00:05]} 67. Kg5 {[%clk 0:00:05]}  Rh3 {[%clk 0:00:06]} 68. Kf4 {[%clk 0:00:03]}  Ke6 {[%clk 0:00:07]} 69. Rb6+ {[%clk 0:00:03]}  Kd5 {[%clk 0:00:07]} 70. Rb5+ {[%clk 0:00:03]}  Kd4 {[%clk 0:00:07]} 71. Rg5 {[%clk 0:00:04]}  Kd3 {[%clk 0:00:07]} 72. Rf5 {[%clk 0:00:04]}  Ke2 {[%clk 0:00:06]} 73. Ra5 {[%clk 0:00:04]}  Kf2 {[%clk 0:00:06]} 74. Ra2+ {[%clk 0:00:04]}  Kg1 {[%clk 0:00:05]} 75. Ra1+ {[%clk 0:00:05]}  Kf2 {[%clk 0:00:05]} 76. Ra2+ {[%clk 0:00:06]}  Ke1 {[%clk 0:00:06]} 77. Ra1+ {[%clk 0:00:06]}  Kd2 {[%clk 0:00:06]} 78. Ra5 {[%clk 0:00:06]}  Rh1 {[%clk 0:00:04]} 79. Ra2+ {[%clk 0:00:05]}  Kd3 {[%clk 0:00:04]} 80. Ra3+ {[%clk 0:00:04]}  Kd4 {[%clk 0:00:04]} 81. Ra4+ {[%clk 0:00:04]}  Kc5 {[%clk 0:00:04]} 82. Ra5+ {[%clk 0:00:05]}  Kb4 {[%clk 0:00:04]} 83. Rf5 {[%clk 0:00:05]}  Rf1+ {[%clk 0:00:01]} 84. Kg5 {[%clk 0:00:05]}  Rxf5+ {[%clk 0:00:02]} 85. Kxf5 {[%clk 0:00:05]}  h4 {[%clk 0:00:03]} 86. Kxg4 {[%clk 0:00:06]}  hxg3 {[%clk 0:00:03]} 87. Kxg3 {[%clk 0:00:06]} 1/2-1/2


[Site "https://www.chess.com"]

[Event "Titled Tuesday Blitz August 08 Early 2023"]
[White "Czerw, Dawid"]
[Black "Osinovsky, Stepan"]
[WhiteFideId "1145746"]
[BlackFideId "4157354"]
[WhiteElo "2534"]
[BlackElo "2327"]
[Result "1-0"]
[Round "11"]
[TimeControl "180+1"]
[Date "2023.08.08"]
[WhiteClock "0:00:09"]
[BlackClock "0:00:00"]
[Board "121"]

1. e4 {[%clk 0:02:58]}  e5 {[%clk 0:02:52]} 2. Nf3 {[%clk 0:02:59]}  Nc6 {[%clk 0:02:52]} 3. Bb5 {[%clk 0:02:59]}  a6 {[%clk 0:02:53]} 4. Ba4 {[%clk 0:02:59]}  Nf6 {[%clk 0:02:52]} 5. d4 {[%clk 0:02:58]}  exd4 {[%clk 0:02:50]} 6. O-O {[%clk 0:02:58]}  Be7 {[%clk 0:02:48]} 7. e5 {[%clk 0:02:56]}  Ne4 {[%clk 0:02:48]} 8. Re1 {[%clk 0:02:56]}  Nc5 {[%clk 0:02:47]} 9. Bb3 {[%clk 0:02:45]}  d5 {[%clk 0:02:33]} 10. Nxd4 {[%clk 0:02:40]}  Nxd4 {[%clk 0:02:18]} 11. Qxd4 {[%clk 0:02:39]}  Nxb3 {[%clk 0:02:18]} 12. axb3 {[%clk 0:02:39]}  c5 {[%clk 0:02:19]} 13. Qf4 {[%clk 0:02:36]}  O-O {[%clk 0:02:14]} 14. Nc3 {[%clk 0:02:35]}  Be6 {[%clk 0:02:04]} 15. Qg3 {[%clk 0:02:31]}  Bf5 {[%clk 0:02:02]} 16. Re2 {[%clk 0:02:13]}  f6 {[%clk 0:01:39]} 17. Bf4 {[%clk 0:02:11]}  d4 {[%clk 0:01:17]} 18. Ne4 {[%clk 0:02:02]}  Qd5 {[%clk 0:01:03]} 19. exf6 {[%clk 0:01:42]}  Bxf6 {[%clk 0:01:03]} 20. Nxf6+ {[%clk 0:01:37]}  Rxf6 {[%clk 0:01:04]} 21. Re7 {[%clk 0:01:35]}  Rg6 {[%clk 0:01:02]} 22. Re5 {[%clk 0:01:18]}  Qc6 {[%clk 0:00:43]} 23. Bg5 {[%clk 0:01:18]}  Bxc2 {[%clk 0:00:42]} 24. Rc1 {[%clk 0:01:05]}  d3 {[%clk 0:00:42]} 25. Qe3 {[%clk 0:00:39]}  h6 {[%clk 0:00:41]} 26. Rxc5 {[%clk 0:00:39]}  Qe8 {[%clk 0:00:17]} 27. Re5 {[%clk 0:00:37]}  Qxe5 {[%clk 0:00:08]} 28. Qxe5 {[%clk 0:00:36]}  Rxg5 {[%clk 0:00:09]} 29. Qe6+ {[%clk 0:00:34]}  Kh8 {[%clk 0:00:08]} 30. Qd7 {[%clk 0:00:32]}  Re5 {[%clk 0:00:07]} 31. f4 {[%clk 0:00:20]}  Re2 {[%clk 0:00:06]} 32. f5 {[%clk 0:00:17]}  Rae8 {[%clk 0:00:06]} 33. f6 {[%clk 0:00:15]}  gxf6 {[%clk 0:00:03]} 34. Qf7 {[%clk 0:00:13]}  R2e6 {[%clk 0:00:00]} 35. Qg7+ {[%clk 0:00:09]} 1-0


[Site "https://www.chess.com"]

[Event "Titled Tuesday Blitz August 08 Early 2023"]
[White "Hirneise, Jens"]
[Black "Zaksaite, Salomeja"]
[WhiteFideId "24614734"]
[BlackFideId "12801496"]
[WhiteElo "2489"]
[BlackElo "2322"]
[Result "1-0"]
[Round "11"]
[TimeControl "180+1"]
[Date "2023.08.08"]
[WhiteClock "0:00:12"]
[BlackClock "0:00:00"]
[Board "123"]

1. b3 {[%clk 0:02:16]}  e5 {[%clk 0:02:57]} 2. Bb2 {[%clk 0:02:17]}  d6 {[%clk 0:02:57]} 3. g3 {[%clk 0:02:15]}  Nf6 {[%clk 0:02:55]} 4. Bg2 {[%clk 0:02:16]}  Be7 {[%clk 0:02:55]} 5. c4 {[%clk 0:02:15]}  O-O {[%clk 0:02:56]} 6. Nc3 {[%clk 0:02:15]}  c6 {[%clk 0:02:50]} 7. d4 {[%clk 0:02:15]}  Be6 {[%clk 0:02:46]} 8. Nf3 {[%clk 0:02:11]}  e4 {[%clk 0:02:41]} 9. Nd2 {[%clk 0:02:02]}  d5 {[%clk 0:02:40]} 10. e3 {[%clk 0:01:59]}  Nbd7 {[%clk 0:02:38]} 11. cxd5 {[%clk 0:01:59]}  cxd5 {[%clk 0:02:37]} 12. h3 {[%clk 0:01:53]}  Nb8 {[%clk 0:02:34]} 13. Qe2 {[%clk 0:01:49]}  Qd7 {[%clk 0:02:32]} 14. g4 {[%clk 0:01:43]}  Rd8 {[%clk 0:02:30]} 15. f4 {[%clk 0:01:41]}  exf3 {[%clk 0:02:29]} 16. Nxf3 {[%clk 0:01:41]}  Nc6 {[%clk 0:02:28]} 17. O-O {[%clk 0:01:37]}  Bb4 {[%clk 0:02:20]} 18. Ne5 {[%clk 0:01:29]}  Qe7 {[%clk 0:02:05]} 19. Nxc6 {[%clk 0:01:26]}  bxc6 {[%clk 0:02:04]} 20. Na4 {[%clk 0:01:27]}  a5 {[%clk 0:01:51]} 21. Rac1 {[%clk 0:01:27]}  Qb7 {[%clk 0:01:24]} 22. Nc5 {[%clk 0:01:25]}  Qb6 {[%clk 0:01:21]} 23. Nxe6 {[%clk 0:01:10]}  fxe6 {[%clk 0:01:21]} 24. g5 {[%clk 0:01:10]}  Ne4 {[%clk 0:01:16]} 25. Bxe4 {[%clk 0:01:08]}  dxe4 {[%clk 0:01:16]} 26. Qg4 {[%clk 0:01:09]}  Bd2 {[%clk 0:01:12]} 27. Qxe6+ {[%clk 0:00:57]}  Kh8 {[%clk 0:01:11]} 28. Rxc6 {[%clk 0:00:56]}  Bxe3+ {[%clk 0:01:10]} 29. Kh1 {[%clk 0:00:43]}  Qb5 {[%clk 0:00:58]} 30. Rc4 {[%clk 0:00:37]}  Qxg5 {[%clk 0:00:39]} 31. Qxe4 {[%clk 0:00:33]}  Re8 {[%clk 0:00:39]} 32. Qg2 {[%clk 0:00:32]}  Qh6 {[%clk 0:00:20]} 33. d5 {[%clk 0:00:31]}  Ra7 {[%clk 0:00:10]} 34. d6 {[%clk 0:00:26]}  Qxd6 {[%clk 0:00:06]} 35. Rg4 {[%clk 0:00:25]}  Bh6 {[%clk 0:00:04]} 36. Rg1 {[%clk 0:00:23]}  Ree7 {[%clk 0:00:02]} 37. Qf3 {[%clk 0:00:20]}  Qd8 {[%clk 0:00:01]} 38. Rf1 {[%clk 0:00:18]}  Qa8 {[%clk 0:00:02]} 39. Qxa8+ {[%clk 0:00:16]}  Rxa8 {[%clk 0:00:02]} 40. Ra4 {[%clk 0:00:16]}  Bg5 {[%clk 0:00:01]} 41. Rf5 {[%clk 0:00:15]}  Bd2 {[%clk 0:00:00]} 42. Rd4 {[%clk 0:00:12]} 1-0


[Site "https://www.chess.com"]

[Event "Titled Tuesday Blitz August 08 Early 2023"]
[White "Fajdetic, Hrvoje"]
[Black "Rottenwohrer Suarez, Juan"]
[WhiteFideId "14501945"]
[BlackFideId "32068182"]
[WhiteElo "2300"]
[BlackElo "2464"]
[Result "0-1"]
[Round "11"]
[TimeControl "180+1"]
[Date "2023.08.08"]
[WhiteClock "0:00:00"]
[BlackClock "0:00:04"]
[Board "125"]

1. f4 {[%clk 0:02:54]}  Nf6 {[%clk 0:02:53]} 2. Nf3 {[%clk 0:02:52]}  g6 {[%clk 0:02:54]} 3. d3 {[%clk 0:02:52]}  Bg7 {[%clk 0:02:55]} 4. e4 {[%clk 0:02:52]}  O-O {[%clk 0:02:56]} 5. Be2 {[%clk 0:02:52]}  c5 {[%clk 0:02:56]} 6. O-O {[%clk 0:02:52]}  Nc6 {[%clk 0:02:57]} 7. c3 {[%clk 0:02:51]}  d6 {[%clk 0:02:46]} 8. Qe1 {[%clk 0:02:50]}  Ne8 {[%clk 0:02:19]} 9. a4 {[%clk 0:02:42]}  a6 {[%clk 0:02:12]} 10. Na3 {[%clk 0:02:39]}  Rb8 {[%clk 0:02:12]} 11. Qh4 {[%clk 0:02:34]}  e6 {[%clk 0:02:05]} 12. Qxd8 {[%clk 0:02:25]}  Nxd8 {[%clk 0:02:05]} 13. a5 {[%clk 0:02:22]}  d5 {[%clk 0:02:03]} 14. e5 {[%clk 0:02:16]}  Nc6 {[%clk 0:01:42]} 15. Be3 {[%clk 0:02:15]}  d4 {[%clk 0:01:24]} 16. cxd4 {[%clk 0:02:13]}  cxd4 {[%clk 0:01:22]} 17. Nxd4 {[%clk 0:02:12]}  Nxa5 {[%clk 0:01:22]} 18. b4 {[%clk 0:01:02]}  Nc6 {[%clk 0:01:05]} 19. b5 {[%clk 0:01:02]}  Nb4 {[%clk 0:00:53]} 20. Nb3 {[%clk 0:00:39]}  Nd5 {[%clk 0:00:44]} 21. Bc5 {[%clk 0:00:34]}  Nec7 {[%clk 0:00:45]} 22. Bxf8 {[%clk 0:00:29]}  Bxf8 {[%clk 0:00:46]} 23. bxa6 {[%clk 0:00:19]}  bxa6 {[%clk 0:00:42]} 24. Na5 {[%clk 0:00:17]}  Rb2 {[%clk 0:00:33]} 25. Bg4 {[%clk 0:00:10]}  Ne3 {[%clk 0:00:27]} 26. Bf3 {[%clk 0:00:06]}  Nxf1 {[%clk 0:00:25]} 27. Kxf1 {[%clk 0:00:06]}  Nb5 {[%clk 0:00:13]} 28. N3c4 {[%clk 0:00:05]}  Rc2 {[%clk 0:00:07]} 29. Nc6 {[%clk 0:00:04]}  Bc5 {[%clk 0:00:05]} 30. Nb4 {[%clk 0:00:03]}  Rf2+ {[%clk 0:00:05]} 31. Ke1 {[%clk 0:00:03]}  Rxf3 {[%clk 0:00:03]} 32. gxf3 {[%clk 0:00:02]}  Bxb4+ {[%clk 0:00:04]} 33. Kd1 {[%clk 0:00:02]}  Bc3 {[%clk 0:00:04]} 34. Rb1 {[%clk 0:00:00]}  Bd4 {[%clk 0:00:04]} 0-1


[Site "https://www.chess.com"]

[Event "Titled Tuesday Blitz August 08 Early 2023"]
[White "Rosh Jain"]
[Black "UgarteCesar"]
[WhiteFideId "25789465"]
[WhiteElo "2463"]
[BlackElo "2294"]
[Result "0-1"]
[Round "11"]
[TimeControl "180+1"]
[Date "2023.08.08"]
[WhiteClock "0:00:00"]
[BlackClock "0:00:16"]
[Board "126"]

1. e4 {[%clk 0:02:57]}  c5 {[%clk 0:02:59]} 2. Nf3 {[%clk 0:02:53]}  Nc6 {[%clk 0:02:58]} 3. d4 {[%clk 0:02:53]}  cxd4 {[%clk 0:02:59]} 4. Nxd4 {[%clk 0:02:54]}  Qb6 {[%clk 0:03:00]} 5. Nb3 {[%clk 0:02:52]}  Nf6 {[%clk 0:03:00]} 6. Nc3 {[%clk 0:02:49]}  e6 {[%clk 0:03:00]} 7. Be3 {[%clk 0:02:49]}  Qc7 {[%clk 0:03:00]} 8. Bd3 {[%clk 0:02:48]}  a6 {[%clk 0:03:01]} 9. O-O {[%clk 0:02:47]}  b5 {[%clk 0:03:01]} 10. f4 {[%clk 0:02:46]}  b4 {[%clk 0:03:01]} 11. Na4 {[%clk 0:02:45]}  d5 {[%clk 0:03:00]} 12. Nb6 {[%clk 0:02:38]}  Rb8 {[%clk 0:02:54]} 13. exd5 {[%clk 0:02:37]}  Rxb6 {[%clk 0:02:53]} 14. dxc6 {[%clk 0:02:35]}  Rxc6 {[%clk 0:02:52]} 15. Nd4 {[%clk 0:02:15]}  Rd6 {[%clk 0:02:33]} 16. Qe1 {[%clk 0:02:11]}  Be7 {[%clk 0:02:20]} 17. Nf3 {[%clk 0:01:45]}  O-O {[%clk 0:02:15]} 18. Bd4 {[%clk 0:01:25]}  Rfd8 {[%clk 0:01:50]} 19. Be5 {[%clk 0:01:21]}  Qb6+ {[%clk 0:01:50]} 20. Kh1 {[%clk 0:01:21]}  R6d7 {[%clk 0:01:33]} 21. Rd1 {[%clk 0:01:14]}  Bb7 {[%clk 0:01:31]} 22. Rd2 {[%clk 0:01:02]}  h6 {[%clk 0:01:24]} 23. Re2 {[%clk 0:00:45]}  a5 {[%clk 0:01:01]} 24. Qg3 {[%clk 0:00:42]}  a4 {[%clk 0:00:43]} 25. Qh3 {[%clk 0:00:20]}  Kf8 {[%clk 0:00:41]} 26. Nh4 {[%clk 0:00:19]}  b3 {[%clk 0:00:36]} 27. axb3 {[%clk 0:00:18]}  axb3 {[%clk 0:00:36]} 28. Qg3 {[%clk 0:00:06]}  bxc2 {[%clk 0:00:34]} 29. Bxc2 {[%clk 0:00:06]}  Rd2 {[%clk 0:00:29]} 30. Rfe1 {[%clk 0:00:06]}  Qb5 {[%clk 0:00:18]} 31. Rxd2 {[%clk 0:00:05]}  Rxd2 {[%clk 0:00:18]} 32. Bb1 {[%clk 0:00:05]}  Re2 {[%clk 0:00:17]} 33. Rxe2 {[%clk 0:00:04]}  Qxe2 {[%clk 0:00:18]} 34. Qd3 {[%clk 0:00:00]}  Qe1+ {[%clk 0:00:16]} 0-1


[Site "https://www.chess.com"]

[Event "Titled Tuesday Blitz August 08 Early 2023"]
[White "slidingknight2775"]
[Black "Sariego Figueredo, Wilfredo"]
[BlackFideId "3500080"]
[WhiteElo "2454"]
[BlackElo "2292"]
[Result "1-0"]
[Round "11"]
[TimeControl "180+1"]
[Date "2023.08.08"]
[WhiteClock "0:00:19"]
[BlackClock "0:00:16"]
[Board "127"]

1. d4 {[%clk 0:03:00]}  d5 {[%clk 0:03:00]} 2. Nf3 {[%clk 0:03:01]}  Nf6 {[%clk 0:03:00]} 3. c4 {[%clk 0:03:01]}  c6 {[%clk 0:03:00]} 4. g3 {[%clk 0:03:00]}  a6 {[%clk 0:03:00]} 5. Bg2 {[%clk 0:02:59]}  dxc4 {[%clk 0:03:01]} 6. O-O {[%clk 0:02:57]}  e6 {[%clk 0:03:01]} 7. a4 {[%clk 0:02:57]}  Bd6 {[%clk 0:03:01]} 8. a5 {[%clk 0:02:53]}  O-O {[%clk 0:02:58]} 9. Nbd2 {[%clk 0:02:49]}  Be7 {[%clk 0:02:51]} 10. Nxc4 {[%clk 0:02:48]}  Nbd7 {[%clk 0:02:50]} 11. Bf4 {[%clk 0:02:41]}  Nd5 {[%clk 0:02:50]} 12. Bd6 {[%clk 0:02:33]}  N7f6 {[%clk 0:02:42]} 13. Bxe7 {[%clk 0:02:32]}  Qxe7 {[%clk 0:02:43]} 14. Qb3 {[%clk 0:02:30]}  Rb8 {[%clk 0:02:37]} 15. e3 {[%clk 0:02:27]}  Bd7 {[%clk 0:02:23]} 16. Nfe5 {[%clk 0:02:20]}  Rfd8 {[%clk 0:02:20]} 17. Qa3 {[%clk 0:02:17]}  Qxa3 {[%clk 0:02:10]} 18. Rxa3 {[%clk 0:02:18]}  Be8 {[%clk 0:02:04]} 19. Rb3 {[%clk 0:02:13]}  Rdc8 {[%clk 0:02:01]} 20. Nd6 {[%clk 0:02:03]}  Rc7 {[%clk 0:02:02]} 21. Rc1 {[%clk 0:02:01]}  Ne7 {[%clk 0:01:57]} 22. Nd3 {[%clk 0:01:39]}  Nfd5 {[%clk 0:01:51]} 23. Nc5 {[%clk 0:01:36]}  Rd8 {[%clk 0:01:42]} 24. Ndxb7 {[%clk 0:01:25]}  Rb8 {[%clk 0:01:36]} 25. Nd6 {[%clk 0:01:25]}  Rd8 {[%clk 0:01:32]} 26. Nc4 {[%clk 0:01:15]}  Ra7 {[%clk 0:01:23]} 27. Nb6 {[%clk 0:01:00]}  Nc8 {[%clk 0:01:10]} 28. Nxc8 {[%clk 0:00:46]}  Rxc8 {[%clk 0:01:11]} 29. Bxd5 {[%clk 0:00:43]}  cxd5 {[%clk 0:01:11]} 30. Rb6 {[%clk 0:00:43]}  Bb5 {[%clk 0:01:11]} 31. f3 {[%clk 0:00:37]}  h6 {[%clk 0:01:09]} 32. Kf2 {[%clk 0:00:37]}  Rac7 {[%clk 0:01:05]} 33. Rc3 {[%clk 0:00:35]}  Rc6 {[%clk 0:01:06]} 34. Rxc6 {[%clk 0:00:25]}  Rxc6 {[%clk 0:01:06]} 35. b4 {[%clk 0:00:23]}  Bc4 {[%clk 0:01:04]} 36. Ke1 {[%clk 0:00:21]}  Kf8 {[%clk 0:01:03]} 37. Kd2 {[%clk 0:00:21]}  Ke7 {[%clk 0:01:03]} 38. Na4 {[%clk 0:00:20]}  Bb5 {[%clk 0:01:00]} 39. Rxc6 {[%clk 0:00:19]}  Bxc6 {[%clk 0:01:01]} 40. Nc5 {[%clk 0:00:20]}  Bb5 {[%clk 0:01:01]} 41. e4 {[%clk 0:00:20]}  Kd6 {[%clk 0:01:00]} 42. Ke3 {[%clk 0:00:19]}  g5 {[%clk 0:00:57]} 43. h4 {[%clk 0:00:18]}  gxh4 {[%clk 0:00:54]} 44. gxh4 {[%clk 0:00:19]}  f6 {[%clk 0:00:54]} 45. Nd3 {[%clk 0:00:18]}  Bxd3 {[%clk 0:00:31]} 46. Kxd3 {[%clk 0:00:18]}  dxe4+ {[%clk 0:00:29]} 47. fxe4 {[%clk 0:00:19]}  Kc6 {[%clk 0:00:30]} 48. Kc4 {[%clk 0:00:19]}  Kd6 {[%clk 0:00:24]} 49. b5 {[%clk 0:00:18]}  axb5+ {[%clk 0:00:22]} 50. Kxb5 {[%clk 0:00:19]}  f5 {[%clk 0:00:22]} 51. exf5 {[%clk 0:00:19]}  exf5 {[%clk 0:00:23]} 52. Kc4 {[%clk 0:00:16]}  h5 {[%clk 0:00:13]} 53. d5 {[%clk 0:00:15]}  f4 {[%clk 0:00:13]} 54. Kd4 {[%clk 0:00:14]}  f3 {[%clk 0:00:12]} 55. Ke3 {[%clk 0:00:14]}  Kxd5 {[%clk 0:00:13]} 56. Kxf3 {[%clk 0:00:14]}  Kc5 {[%clk 0:00:13]} 57. Kf4 {[%clk 0:00:15]}  Kb5 {[%clk 0:00:14]} 58. Kg5 {[%clk 0:00:16]}  Kxa5 {[%clk 0:00:15]} 59. Kxh5 {[%clk 0:00:17]}  Kb6 {[%clk 0:00:16]} 60. Kg6 {[%clk 0:00:17]}  Kc7 {[%clk 0:00:17]} 61. h5 {[%clk 0:00:17]}  Kd8 {[%clk 0:00:18]} 62. h6 {[%clk 0:00:18]}  Ke8 {[%clk 0:00:19]} 63. Kg7 {[%clk 0:00:18]}  Ke7 {[%clk 0:00:16]} 64. h7 {[%clk 0:00:19]} 1-0


[Site "https://www.chess.com"]

[Event "Titled Tuesday Blitz August 08 Early 2023"]
[White "FREDERICKtheMATE"]
[Black "GAO"]
[WhiteElo "2436"]
[BlackElo "2283"]
[Result "1-0"]
[Round "11"]
[TimeControl "180+1"]
[Date "2023.08.08"]
[WhiteClock "0:00:55"]
[BlackClock "0:00:20"]
[Board "128"]

1. Nf3 {[%clk 0:03:00]}  c5 {[%clk 0:02:58]} 2. g3 {[%clk 0:03:00]}  Nf6 {[%clk 0:02:56]} 3. Bg2 {[%clk 0:03:00]}  g6 {[%clk 0:02:57]} 4. O-O {[%clk 0:03:01]}  Bg7 {[%clk 0:02:58]} 5. b3 {[%clk 0:03:00]}  O-O {[%clk 0:02:59]} 6. Bb2 {[%clk 0:03:00]}  d5 {[%clk 0:03:00]} 7. c4 {[%clk 0:03:00]}  d4 {[%clk 0:03:00]} 8. d3 {[%clk 0:03:01]}  Nc6 {[%clk 0:03:00]} 9. Nbd2 {[%clk 0:03:01]}  Bg4 {[%clk 0:02:59]} 10. a3 {[%clk 0:02:59]}  Qd7 {[%clk 0:02:57]} 11. b4 {[%clk 0:02:58]}  cxb4 {[%clk 0:02:56]} 12. axb4 {[%clk 0:02:58]}  Nxb4 {[%clk 0:02:56]} 13. Bxd4 {[%clk 0:02:50]}  Nc6 {[%clk 0:02:47]} 14. Bc3 {[%clk 0:02:47]}  Rfe8 {[%clk 0:02:44]} 15. Qb3 {[%clk 0:02:43]}  e5 {[%clk 0:02:39]} 16. Rfb1 {[%clk 0:02:42]}  b6 {[%clk 0:02:37]} 17. Qa4 {[%clk 0:02:23]}  Rad8 {[%clk 0:02:31]} 18. Ng5 {[%clk 0:02:17]}  Nd4 {[%clk 0:02:27]} 19. Bxd4 {[%clk 0:02:15]}  Qxd4 {[%clk 0:02:05]} 20. Ngf3 {[%clk 0:02:08]}  Qd6 {[%clk 0:01:41]} 21. Qxa7 {[%clk 0:02:04]}  e4 {[%clk 0:01:39]} 22. Rxb6 {[%clk 0:02:02]}  Qc5 {[%clk 0:01:40]} 23. d4 {[%clk 0:01:55]}  Qh5 {[%clk 0:01:39]} 24. Rb5 {[%clk 0:01:49]}  Qh6 {[%clk 0:01:32]} 25. Ng5 {[%clk 0:01:46]}  Rd7 {[%clk 0:01:22]} 26. Qb6 {[%clk 0:01:39]}  Bf5 {[%clk 0:01:19]} 27. h4 {[%clk 0:01:36]}  Ng4 {[%clk 0:01:13]} 28. e3 {[%clk 0:01:32]}  Nf6 {[%clk 0:00:59]} 29. Rba5 {[%clk 0:01:17]}  Qh5 {[%clk 0:00:55]} 30. Bf1 {[%clk 0:01:14]}  Qg4 {[%clk 0:00:50]} 31. Re1 {[%clk 0:01:08]}  h6 {[%clk 0:00:50]} 32. Be2 {[%clk 0:01:08]}  hxg5 {[%clk 0:00:42]} 33. Bxg4 {[%clk 0:01:07]}  Nxg4 {[%clk 0:00:43]} 34. hxg5 {[%clk 0:01:07]}  Red8 {[%clk 0:00:37]} 35. Rd5 {[%clk 0:00:57]}  Rxd5 {[%clk 0:00:35]} 36. cxd5 {[%clk 0:00:58]}  Rxd5 {[%clk 0:00:35]} 37. Ra1 {[%clk 0:00:56]}  Bd7 {[%clk 0:00:20]} 38. Ra5 {[%clk 0:00:55]} 1-0


[Site "https://www.chess.com"]